Workbook

Sheet Sheet1
A1: 山西分公司资产处置清单
A2: 基准日：2025/9/30 | M2: 单位：元
A3: 序号 | B3: 债务人 | C3: 本金（万元） | D3: 本金 | E3: 利息及罚息 （万元） | F3: 利息及罚息 | G3: 代垫费用 （万元） | H3: 代垫费用 | I3: 债权金额（万元） | J3: 债权金额 | K3: 债务人注册地 | L3: 保证人 | M3: 抵质押物
A4: 1 | B4: 山西森特煤焦化工程集团有限公司 | C4: 15,348.18 | D4: 153,481,767.13 | E4: 24,319.71 | F4: 243,197,135.16 | G4: 91.06 | H4: 910,637.63 | I4: =C4+E4+G4 -> 39,758.95 | J4: =D4+F4+H4 -> 397,589,539.92 | K4: 山西太原 | L4: 天津森特慧众国际贸易有限公司、山西森特焦化环保工程技术有限公司、山西楼东俊安煤气化有限公司、杨德信、杨慧、杨晓峰、段萍、刘军、潘娜、长治市森特重型机械制造有限公司、闻喜县慧众选煤成套装备有限责任公司 | M4: 1.位于山西省太原解放路277号1幢10层的办公用房，抵押房产面积1285.79平方米； 2.位于山西省运城市闻喜县东镇西街的房产所有权及土地使用权，抵押土地面积8614.23平方米（该土地无对应房产），抵押房产面积28784.53平方米（对应土地未办理他项）； 3.位于山西省运城市闻喜县桐城镇东宋村（姚村工业园）的房产所有权及土地使用权，抵押土地面积66302.29平方米（其余土地未办理他项），抵押房产面积43603.45平方米； 4.位于山西省运城市闻喜县桐城镇姚村工业园的机械设备64项（部分已被拍卖，执行回转中）。
A5: 2 | B5: 山西楼东俊安煤气化有限公司 | C5: =92977884.72/10000 -> 9,297.79 | D5: 92,977,884.72 | E5: =177757935.644933/10000 -> 17,775.79 | F5: 161,475,000.05 | G5: =588077/10000 -> 58.81 | H5: 588,077.00 | I5: =C5+E5+G5 -> 27,132.39 | J5: 255,040,961.77 | K5: 山西吕梁 | L5: 俊安（天津）实业有限公司、郭华 | M5: 租赁物：债务人一期焦炉系统、二期焦炉系统、二期洗煤系统三套设备
A6: 3 | B6: 山西德玺化学工业有限责任公司 | C6: =42750000/10000 -> 4,275.00 | D6: 42,750,000.00 | E6: =59134069.9357775/10000 -> 5,913.41 | F6: 65,543,116.30 | G6: =374140/10000 -> 37.41 | H6: 374,140.00 | I6: 10,225.82 | J6: 108,667,256.30 | K6: 山西临汾 | L6: 周斌 | M6: 1、债务人山西德玺化学工业有限责任公司名下位于侯马市凤城乡南上官村工业用地，抵押土地面积54196平方米；2、史红云名下位于曲沃县普通住宅，抵押房产面积104.1平方米。
A7: 4 | B7: 山西德玺化学工业有限责任公司 | C7: =19800000/10000 -> 1,980.00 | D7: 19,800,000.00 | E7: =16982995.26/10000 -> 1,698.30 | F7: 18,484,495.26 | G7: =145600/10000 -> 14.56 | H7: 145,600.00 | I7: 3,692.86 | J7: 38,430,095.26 | K7: 山西临汾 | L7: 周斌、史红云 | M7: 债务人名下位于侯马市凤城乡南上官村的78台专用机器设备
A8: 5 | B8: 翼城县江源生物工程有限公司 | C8: =16978313.8/10000 -> 1,697.83 | D8: 16,978,313.80 | E8: =13242336.92/10000 -> 1,324.23 | F8: 13,948,575.30 | G8: 0 | H8: 0 | I8: 3,022.07 | J8: 30,926,889.10 | K8: 山西临汾 | L8: 浮山县翱翔矿产品经销有限公司、翼城县隆盛昌商贸有限公司、张海军、张凌云 | M8: /
A9: 6 | B9: 山西华邑储运有限公司 | C9: =14797655.22/10000 -> 1,479.77 | D9: 14,797,655.22 | E9: =30614692.5169617/10000 -> 3,061.47 | F9: 34,325,270.38 | G9: =253471.26/10000 -> 25.35 | H9: 253,471.26 | I9: 4,566.58 | J9: 49,376,396.86 | K9: 山西吕梁 | L9: 霍文莉、山西华邑能源集团开发股份有限公司、山西曜鑫煤焦有限公司 武刚、武栓生
A10: 7 | B10: 永济市康裕油脂有限公司 | C10: =12085393.08/10000 -> 1,208.54 | D10: 12,085,393.08 | E10: =9848549.06754597/10000 -> 984.85 | F10: 10,944,067.29 | G10: 0 | H10: 0 | I10: 2,193.39 | J10: 23,029,460.37 | K10: 山西运城 | L10: 山西开园鑫融融资担保股份有限公司、上官喜来、李扭过 | M10: 康裕公司名下位于运城市永济市卿头镇的48600平米土地（集体用地）和19061平米房产。
A11: 8 | B11: 孝义市万方科技有限公司 | C11: =8973630.74/10000 -> 897.36 | D11: 8,973,630.74 | E11: =17574894.1747612/10000 -> 1,757.49 | F11: 19,631,352.56 | G11: =130182/10000 -> 13.02 | H11: 130,182.00 | I11: 2,667.87 | J11: 28,735,165.30 | K11: 山西吕梁 | L11: 冯文明、杨风兰、冯章印、孝义市东海源煤化有限公司 | M11: 无
A12: 9 | B12: 闻喜县宏业玻璃制品有限公司 | C12: =7993870.11/10000 -> 799.39 | D12: 7,993,870.11 | E12: =22875132.9174341/10000 -> 2,287.51 | F12: 244,842.65 | G12: =72638/10000 -> 7.26 | H12: =72638+34735 -> 107,373.00 | I12: 3,094.16 | J12: 8,346,085.76 | K12: 山西运城 | L12: 山西骏达木业有限公司、谢喜梅、徐文俊
A13: 10 | B13: 山西广厦建业房地产开发有限公司 | C13: =7090000/10000 -> 709.00 | D13: 7,090,000.00 | E13: =38637968.03113/10000 -> 3,863.80 | F13: 41,728,914.98 | G13: =213200/10000 -> 21.32 | H13: 213,200.00 | I13: 4,594.12 | J13: 49,032,114.98 | K13: 山西太原 | L13: 山西兴业工贸有限公司
A14: 11 | B14: 山西鑫昌盛铸造有限公司 | C14: =2980086.53/10000 -> 298.01 | D14: 2,980,086.53 | E14: =5863003.83464924/10000 -> 586.30 | F14: 6,585,560.08 | G14: =59041/10000 -> 5.90 | H14: 59,041.00 | I14: 890.21 | J14: 9,624,687.61 | K14: 山西吕梁 | L14: 交城县至成铸造有限公司、贾耀星、杨晴娥、贾耀辉、王果仙
A15: 12 | B15: 山西翼城尧森农工商实业有限公司 | C15: =2910000/10000 -> 291.00 | D15: 2,910,001.00 | E15: =5622541.03/10000 -> 562.25 | F15: 5,729,117.36 | G15: 0 | H15: 0 | I15: 853.25 | J15: 8,639,118.36 | K15: 山西临汾 | L15: / | M15: 气调保鲜库及其配套设备，发电机锅炉等22套机器设备抵押。（无登记证书）
A16: 13 | B16: 霍州市霍山兔业有限公司 | C16: =2850526.54/10000 -> 285.05 | D16: 2,850,526.54 | E16: =1994542.69/10000 -> 199.45 | F16: 2,361,962.10 | G16: 0 | H16: 0 | I16: 484.51 | J16: 5,212,488.64 | K16: 山西临汾 | L16: 霍州绿源农牧科技有限公司、张红马 | M16: /
A17: 14 | B17: 闻喜县宏昆商贸有限公司 | C17: =2819415.77/10000 -> 281.94 | D17: 2,819,522.77 | E17: =2120165.58624077/10000 -> 212.02 | F17: 2,228,054.73 | G17: =92276/10000 -> 9.23 | H17: 92,276.00 | I17: 503.19 | J17: 5,139,853.50 | K17: 山西运城 | L17: 运城市博鸣木业有限公司
A18: 15 | B18: 垣曲县民生农副产品开发有限责任公司 | C18: =2768800/10000 -> 276.88 | D18: 2,768,800.00 | E18: =2768531.80001441/10000 -> 276.85 | F18: 3,121,195.22 | G18: 0 | H18: 0 | I18: 553.73 | J18: 5,889,995.22 | K18: 山西运城 | L18: 山西泉鑫茧丝绸有限公司、申亚佩、孙亚平
A19: 16 | B19: 运城市解州九龙潜水电机有限公司 | C19: 16,237.46 | D19: 162,374,598.80 | E19: 25,206.18 | F19: 268,208,157.16 | G19: 0.50 | H19: 5,000.00 | I19: 41,444.14 | J19: 430,587,755.96 | K19: 山西运城 | L19: 孟金果、孟金美、梁建新、侯跃林、山西新通源食品有限公司、运城市云天化工有限公司
A20: 17 | B20: 运城市云天化工有限公司 | C20: 8,842.34 | D20: 88,423,429.01 | E20: 18,017.85 | F20: 185,010,765.41 | G20: 51.46 | H20: 514,577.00 | I20: 26,911.65 | J20: 273,948,771.42 | K20: 山西运城 | L20: 山西骏达木业有限公司、薛宏文、李春菊、薛成栋、张爱草 | M20: 债务人运城市云天化工有限公司名下位于运城市运风高速路口北（董家营村南）的机械设备79项。
A21: 18 | B21: 山西泰裕达实业有限公司 | C21: 2,291.19 | D21: 22,911,900.34 | E21: 4,240.91 | F21: 43,352,486.91 | G21: 0.50 | H21: 5,000.00 | I21: 6,532.60 | J21: 66,269,387.25 | K21: 山西运城 | L21: 山西金石大国际贸易有限公司、山西省绛县明迈特有限公司、赵建新、武晋花、赵潇平、吴艳琴、孟树明、游东娟、郭光明、杨建蓉
A22: 19 | B22: 山西新通源食品有限公司 | C22: 2,958.22 | D22: 29,582,196.72 | E22: 2,806.82 | F22: 28,509,519.30 | G22: 20.95 | H22: 209,518.00 | I22: 5,785.99 | J22: 58,301,234.02 | K22: 山西运城 | L22: 运城市煜丰食品有限公司、运城市海达物资销售有限公司、山西大华精工精密铸造有限公司、张琨、李建红、鲁明（已去世）、张士生（已去世） | M22: 1、债务人名下厂房及工业用地（地址：永济市虞乡镇吴闫村1幢2幢，土地面积：19,307.29平方米，房产面积：9,841.04平方米）、 2、机器设备提供抵押（61种【豆制品生产线CS-800-4等】） 3、张琨名下房产一套提供抵押。
B23: 合计 | C23: =SUM(C4:C22) -> 69,454.94 | D23: 694,549,576.51 | E23: 115,095.21 | F23: 1,154,629,588.20 | G23: 357.34 | H23: 3,608,092.89 | I23: 184,907.49 | J23: 1,852,787,257.60
